bitfinex-derivatives/quotes_BTCF0:USTF0_20251109
["timestamp","ask_amount","ask_price","bid_price","bid_amount"]
[1762658944696,1.04802232,101590.0,101580.0,0.15615782]
[1762658947899,0.99511957,101590.0,101580.0,0.15615782]
[1762658948096,0.99511957,101590.0,101580.0,0.05768002]
[1762658948288,0.025,101580.0,101530.0,0.18111525]
[1762658948490,0.0985457,101510.0,101480.0,0.28067887]
[1762658948688,0.0985707,101490.0,101470.0,0.05768]
[1762658948892,0.12330589,101490.0,101480.0,0.05768]
[1762658949093,0.24737317,101490.0,101480.0,0.0134]
[1762658949295,0.24737317,101490.0,101480.0,0.05768]
[1762658949296,0.27120397,101490.0,101480.0,0.05768]
[1762658949590,0.27120397,101490.0,101480.0,0.16012257]
[1762658949591,0.02481142,101490.0,101480.0,0.16012257]
[1762658949790,0.00014779,101500.0,101490.0,0.1428451]
[1762658949991,0.001,101510.0,101500.0,0.04428]
[1762658950199,0.0985168,101540.0,101530.0,0.04428]
[1762658950697,0.4266353,101550.0,101540.0,0.0134]
[1762658951002,0.37584652,101550.0,101540.0,0.0134]
[1762658951187,0.27340395,101550.0,101540.0,0.05768]
[1762658951393,0.37584652,101550.0,101540.0,0.05768]
[1762658951593,1.09744652,101550.0,101540.0,0.05768]
[1762658951793,0.99500395,101550.0,101540.0,0.05768]
[1762658952091,0.74873137,101550.0,101540.0,0.16012257]
[1762658952291,0.7216,101550.0,101540.0,0.1561966]
[1762658953000,0.7216,101550.0,101540.0,0.05868]
[1762658953001,0.7256,101550.0,101540.0,0.05868]
[1762658953302,0.7296,101550.0,101540.0,0.1571966]
[1762658953499,0.8281069,101550.0,101540.0,0.05868]
[1762658953701,0.7296,101550.0,101540.0,0.05868]
[1762658954009,0.7296,101550.0,101540.0,0.1571966]
[1762658956097,0.008,101550.0,101540.0,0.70584657]
[1762658956301,0.008,101550.0,101540.0,0.95204657]
[1762658956501,0.008,101550.0,101540.0,0.5179966]
[1762658956695,0.4673069,101550.0,101540.0,0.1361566]
[1762658956894,0.4673069,101550.0,101540.0,0.1571966]
[1762658957705,0.3688,101550.0,101540.0,0.1571966]
[1762658958702,0.00393148,101550.0,101540.0,0.95204657]
[1762658959002,0.00014779,101560.0,101550.0,0.1427869]
[1762658959199,0.00014779,101560.0,101550.0,1.24323687]
[1762658959392,0.00014779,101560.0,101550.0,1.48939687]
[1762658959597,0.00014779,101560.0,101550.0,1.0553869]
[1762658960097,0.00014779,101560.0,101550.0,1.3015469]
[1762658960500,0.00114779,101560.0,101550.0,1.3015469]
[1762658960699,0.00114779,101560.0,101550.0,1.0553869]
[1762658960998,0.00114779,101560.0,101550.0,1.48939687]
[1762658961311,0.00114779,101560.0,101550.0,1.24323687]
[1762658961507,0.00114779,101560.0,101550.0,1.48939687]
[1762658961802,0.00214779,101560.0,101550.0,1.48939687]
[1762658962411,0.00114779,101560.0,101550.0,1.48939687]
[1762658962599,0.00014779,101560.0,101550.0,1.24823687]
[1762658963108,0.00014779,101560.0,101550.0,1.49439687]
[1762658964210,0.00014779,101560.0,101550.0,1.24823687]
[1762658964406,0.00014779,101560.0,101550.0,1.3065469]
[1762658964716,0.36094779,101560.0,101550.0,0.6995869]
[1762658964911,0.45944499,101560.0,101550.0,0.6995869]
[1762658965601,0.64729496,101560.0,101550.0,0.5568]
[1762658965806,0.69368959,101560.0,101550.0,0.60183]
[1762658966009,0.33288959,101560.0,101550.0,0.60183]
[1762658966198,0.04654242,101560.0,101550.0,0.7003369]
[1762658966403,0.0271687,101560.0,101550.0,0.7003369]
[1762658966603,0.7487687,101560.0,101550.0,0.7003369]
[1762658966906,0.3879687,101560.0,101550.0,0.88818687]
[1762658967097,0.36094779,101560.0,101550.0,0.88818687]
[1762658968310,0.36094779,101560.0,101550.0,0.7003369]
[1762658968510,0.36094779,101560.0,101550.0,0.9464969]
[1762658969407,0.36094779,101560.0,101550.0,0.7003369]
[1762658969711,0.00014779,101560.0,101550.0,0.7003369]
[1762658969910,0.00014779,101560.0,101550.0,1.3072969]
[1762658970214,0.00014779,101560.0,101550.0,1.49514687]
[1762658970818,0.00014779,101560.0,101550.0,1.24898687]
[1762658971014,0.00014779,101560.0,101550.0,1.49514687]
[1762658971214,0.00014779,101560.0,101550.0,1.24898687]
[1762658971404,0.00014779,101560.0,101550.0,1.49514687]
[1762658972215,0.00014779,101560.0,101550.0,1.50825687]
[1762658972714,0.00014779,101560.0,101550.0,1.0742469]
[1762658972915,0.00014779,101560.0,101550.0,1.3204069]
[1762658973210,0.3608,101570.0,101560.0,0.1566372]
[1762658973417,0.39113381,101570.0,101560.0,0.1566372]
[1762658974309,0.39113381,101570.0,101560.0,0.1576372]
[1762658974614,0.39113381,101570.0,101560.0,0.1596372]
[1762658979214,0.48962131,101570.0,101560.0,0.1596372]
[1762658979811,0.39113381,101570.0,101560.0,0.1596372]
[1762658980311,0.03033381,101570.0,101560.0,0.28767427]
[1762658980513,0.03033381,101570.0,101560.0,0.1596372]
[1762658981417,0.03033381,101570.0,101560.0,0.28767427]
[1762658983015,0.03033381,101570.0,101560.0,0.53383427]
[1762658983525,0.03033381,101570.0,101560.0,0.28767427]
[1762658985215,0.62927598,101570.0,101560.0,0.06114]
[1762658985526,0.66454488,101570.0,101560.0,0.01611]
[1762658985925,0.66454488,101570.0,101560.0,0.06024]
[1762658987928,0.68217873,101570.0,101560.0,0.06024]
[1762658989124,0.69911674,101570.0,101560.0,0.06024]
[1762658989427,0.69911674,101570.0,101560.0,0.03863]
[1762658990321,0.69911674,101570.0,101560.0,0.06024]
[1762658992422,0.77605641,101570.0,101560.0,0.06024]
[1762658992928,0.77605641,101570.0,101560.0,0.01611]
[1762658993227,0.70621565,101570.0,101560.0,0.003]
[1762658996133,0.70621565,101570.0,101560.0,0.01686]
[1762658998032,0.75896371,101570.0,101560.0,0.01686]
[1762658999525,0.75896371,101570.0,101560.0,0.06009]
[1762658999726,0.55398697,101570.0,101560.0,0.06009]
[1762658999927,0.69163787,101570.0,101560.0,0.1585872]
[1762659000129,0.63888981,101570.0,101560.0,0.1585872]
[1762659000327,0.42629634,101570.0,101560.0,0.36356394]
[1762659000527,0.03033381,101570.0,101560.0,0.36356394]
[1762659000731,0.39113381,101570.0,101560.0,0.36356394]
[1762659000932,0.39113381,101570.0,101560.0,0.26107557]
[1762659001732,0.59210968,101570.0,101560.0,0.1585872]
[1762659001937,0.48962131,101570.0,101560.0,0.26107557]
[1762659002135,0.59210968,101570.0,101560.0,0.26107557]
[1762659002332,0.48962131,101570.0,101560.0,0.1585872]
[1762659004039,0.48913125,101570.0,101560.0,0.1585872]
[1762659004826,0.39064375,101570.0,101560.0,0.28664219]
[1762659005032,0.02984375,101570.0,101560.0,0.89360219]
[1762659005232,3.75e-06,101570.0,101560.0,0.89360219]
[1762659005433,3.75e-06,101570.0,101560.0,1.44536219]
[1762659005639,3.75e-06,101570.0,101560.0,0.83840219]
[1762659005838,3.75e-06,101570.0,101560.0,1.08456219]
[1762659006144,0.36080375,101570.0,101560.0,0.7103472]
[1762659006437,0.45929125,101570.0,101560.0,0.7103472]
[1762659006941,0.45929125,101570.0,101560.0,0.1585872]
[1762659009346,0.58734624,101570.0,101560.0,0.06009]
[1762659009544,0.45929125,101570.0,101560.0,0.06009]
[1762659009845,0.45929125,101570.0,101560.0,0.1584872]
[1762659010247,0.45929125,101570.0,101560.0,0.1575872]
[1762659010544,0.46029125,101570.0,101560.0,0.1575872]
[1762659011133,0.00100375,101570.0,101560.0,0.1575872]
[1762659011440,0.00100375,101570.0,101560.0,0.89260219]
[1762659011649,0.001,101570.0,101560.0,0.89160219]
[1762659012045,0.001,101570.0,101560.0,0.64544219]
[1762659012245,0.00014779,101580.0,101570.0,0.1555775]
[1762659012549,0.51201406,101600.0,101570.0,0.1555775]
[1762659012550,0.39596253,101600.0,101590.0,0.1555581]
[1762659012748,0.4592584,101600.0,101590.0,0.1555581]
[1762659012947,0.3608,101600.0,101590.0,0.1555581]
[1762659013149,0.4592584,101600.0,101590.0,0.1555581]
[1762659013336,0.49441743,101610.0,101600.0,0.1555484]
[1762659013542,0.45940269,101610.0,101600.0,0.1555484]
[1762659014144,0.36094779,101610.0,101600.0,0.1555484]
[1762659014757,0.45939649,101610.0,101600.0,0.1555484]
[1762659014949,0.45939649,101610.0,101600.0,0.05709]
[1762659015150,0.45939649,101610.0,101600.0,0.1555484]
[1762659015351,0.45939649,101610.0,101600.0,0.1565484]
[1762659016050,0.46039649,101610.0,101600.0,0.1565484]
[1762659016451,0.46039649,101610.0,101600.0,0.05809]
[1762659016655,0.46039649,101610.0,101600.0,0.1565484]
[1762659017153,0.49004714,101610.0,101600.0,0.1565484]
[1762659019640,0.39159844,101610.0,101600.0,0.1565484]
[1762659020051,0.36194779,101610.0,101600.0,0.53064339]
[1762659020354,0.00114779,101610.0,101600.0,0.53064339]
[1762659020559,0.3608,101620.0,101610.0,0.1555387]
[1762659020753,0.39041822,101620.0,101610.0,0.28359369]
[1762659021248,0.39041822,101620.0,101610.0,0.52963369]
[1762659021952,0.39141822,101620.0,101610.0,0.52963369]
[1762659022151,0.39341822,101620.0,101610.0,0.28359369]
[1762659022351,0.39341822,101620.0,101610.0,0.52963369]
[1762659022657,0.03261822,101620.0,101610.0,0.64439369]
[1762659022960,0.001,101620.0,101610.0,0.89043369]
[1762659023255,0.002,101620.0,101610.0,0.89043369]
[1762659023756,0.002,101620.0,101610.0,0.64439369]
[1762659023956,0.001,101620.0,101610.0,0.89043369]
[1762659024155,0.001,101620.0,101610.0,0.89243369]
[1762659024456,0.36094779,101630.0,101610.0,0.89243369]
[1762659024457,0.36094779,101630.0,101620.0,0.155529]
[1762659024659,0.02969863,101630.0,101620.0,0.28358399]
[1762659024849,0.02969863,101630.0,101620.0,0.52958399]
[1762659025552,0.02969863,101630.0,101620.0,0.28358399]
[1762659025752,0.02969863,101630.0,101620.0,0.28458399]
[1762659025955,0.02969863,101630.0,101620.0,0.53058399]
[1762659026857,0.02969863,101630.0,101620.0,0.28658399]
[1762659027057,0.02969863,101630.0,101620.0,0.53258399]
[1762659028357,0.02969863,101630.0,101620.0,0.83806399]
[1762659028659,0.02969863,101630.0,101620.0,0.28658399]
[1762659028857,0.02969863,101630.0,101620.0,0.53258399]
[1762659029152,0.02969863,101630.0,101620.0,0.83806399]
[1762659029358,0.3608,101640.0,101630.0,0.05896]
[1762659029558,0.39034792,101640.0,101630.0,0.83692439]
[1762659029757,0.48876762,101640.0,101630.0,0.83692439]
[1762659029955,0.39034792,101640.0,101630.0,0.83692439]
[1762659030945,0.02954792,101640.0,101630.0,0.83692439]
[1762659031150,0.03054792,101640.0,101630.0,0.83692439]
[1762659031956,0.39134792,101640.0,101630.0,0.83692439]
[1762659032458,0.42651045,101640.0,101630.0,0.83692439]
[1762659032949,0.39134792,101640.0,101630.0,1.08288439]
[1762659033155,0.48976762,101640.0,101630.0,1.08288439]
[1762659033459,0.48976762,101640.0,101630.0,0.83692439]
[1762659033861,0.39134792,101640.0,101630.0,0.83692439]
[1762659034156,0.03054792,101640.0,101630.0,0.83692439]
[1762659034758,0.39134792,101640.0,101630.0,0.83692439]
[1762659035355,0.42651045,101640.0,101630.0,0.91409813]
[1762659037773,0.52493015,101640.0,101630.0,0.91409813]
[1762659038266,0.42651045,101640.0,101630.0,0.91409813]
[1762659038466,0.47925851,101640.0,101630.0,0.91409813]
[1762659039567,0.47925851,101640.0,101630.0,0.78604314]
[1762659039768,0.42651045,101640.0,101630.0,0.78604314]
[1762659040263,0.47925851,101640.0,101630.0,0.78604314]
[1762659040671,0.57767821,101640.0,101630.0,0.78604314]
[1762659040969,0.47925851,101640.0,101630.0,0.78604314]
[1762659041263,0.47925851,101640.0,101630.0,0.23456314]
[1762659041464,0.67057067,101640.0,101630.0,0.05896]
[1762659041664,0.61782261,101640.0,101630.0,0.05896]
[1762659042273,0.68766337,101640.0,101630.0,0.05896]
[1762659042467,0.7647077,101640.0,101630.0,0.05896]
[1762659042670,0.57706857,101640.0,101630.0,0.05896]
[1762659042963,0.7647077,101640.0,101630.0,0.04215213]
[1762659044161,0.57706857,101640.0,101630.0,0.14058153]
[1762659048072,0.56009823,101640.0,101630.0,0.14058153]
[1762659049368,0.48976762,101640.0,101630.0,0.14058153]
[1762659049568,0.57706857,101640.0,101630.0,0.14058153]
[1762659050075,0.56016469,101640.0,101630.0,0.14058153]
[1762659050275,0.56016469,101640.0,101630.0,0.04215213]
[1762659052381,0.56016469,101640.0,101630.0,0.14058153]
[1762659052574,0.48976762,101640.0,101630.0,0.14058153]
[1762659052773,0.44417198,101640.0,101630.0,0.14058153]
[1762659053171,0.52498493,101640.0,101630.0,0.04215213]
[1762659054878,0.52498493,101640.0,101630.0,0.14058153]
[1762659056380,0.42656523,101640.0,101630.0,0.14058153]
[1762659056974,0.40293386,101640.0,101630.0,0.14058153]
[1762659057977,0.36771655,101640.0,101630.0,0.14058153]
[1762659058178,0.36771655,101640.0,101630.0,0.32822066]
[1762659058580,0.00691655,101640.0,101630.0,0.32822066]
[1762659059084,0.00691655,101640.0,101630.0,0.40680373]
[1762659060382,0.00691655,101640.0,101630.0,1.01356373]
[1762659060781,0.00691655,101640.0,101630.0,0.5799646]
[1762659060992,0.00591655,101640.0,101630.0,0.5799646]
[1762659061184,0.00591655,101640.0,101630.0,0.5819646]
[1762659061385,0.36671655,101640.0,101630.0,0.7725246]
[1762659062292,0.46513625,101640.0,101630.0,0.7725246]
[1762659062890,0.46513625,101640.0,101630.0,0.69394153]
[1762659063078,0.46513625,101640.0,101630.0,0.04415213]
[1762659063291,0.68799269,101640.0,101630.0,0.04415213]
[1762659063491,0.68799269,101640.0,101630.0,0.01519]
[1762659063683,0.68799269,101640.0,101630.0,0.03782]
[1762659063684,0.74081675,101640.0,101630.0,0.03782]
[1762659063883,0.74081675,101640.0,101630.0,0.06005]
[1762659064191,0.74081675,101640.0,101630.0,0.01419]
[1762659064386,0.74181675,101640.0,101630.0,0.01319]
[1762659064990,0.72018242,101640.0,101630.0,0.01319]
[1762659065786,0.72118242,101640.0,101630.0,0.01319]
[1762659067385,0.66835836,101640.0,101630.0,0.01319]
[1762659067581,0.72118242,101640.0,101630.0,0.01319]
[1762659067790,0.0984294,101630.0,101620.0,0.00014779]
[1762659068091,0.84736275,101630.0,101620.0,9e-08]
[1762659069095,0.0984488,101610.0,101600.0,0.01386]
[1762659069295,0.0984584,101600.0,101590.0,0.01379]
[1762659069493,0.0984681,101590.0,101580.0,0.01379]
[1762659069800,0.0984681,101590.0,101570.0,0.0138703]
[1762659069801,0.0984778,101580.0,101570.0,0.0138703]
[1762659070091,0.65077993,101580.0,101570.0,0.0587303]
[1762659070595,0.4631408,101580.0,101570.0,0.0587303]
[1762659070782,0.4631408,101580.0,101570.0,0.0138703]
[1762659070986,0.65077993,101580.0,101570.0,0.0138703]
[1762659071288,0.65277993,101580.0,101570.0,0.0138703]
[1762659071485,0.65477993,101580.0,101570.0,0.0138703]
[1762659072884,0.65477993,101580.0,101570.0,0.1349878]
[1762659073087,0.34115151,101580.0,101570.0,0.1572178]
[1762659073692,0.004,101580.0,101570.0,0.1572178]
[1762659073885,0.3648,101580.0,101570.0,0.1572178]
[1762659074195,0.4632778,101580.0,101570.0,0.1572178]
[1762659074582,0.4592778,101580.0,101570.0,0.1592178]
[1762659074782,0.4592778,101580.0,101570.0,0.1602178]
[1762659075293,0.3608,101580.0,101570.0,0.1602178]
[1762659076297,0.3608,101580.0,101570.0,0.1582178]
[1762659076482,0.3608,101580.0,101570.0,0.1592178]
[1762659077188,0.4592778,101580.0,101570.0,0.1592178]
[1762659077388,0.3608,101580.0,101570.0,0.1592178]
[1762659078196,0.36094779,101590.0,101580.0,0.1571278]
[1762659079694,0.36194779,101590.0,101580.0,0.1571278]
[1762659081295,0.46041589,101590.0,101580.0,0.1571278]
[1762659084105,0.36194779,101590.0,101580.0,0.1571278]
[1762659086096,0.00114779,101590.0,101580.0,0.1571278]
[1762659086503,0.00014779,101590.0,101580.0,0.1571278]
[1762659086705,0.00014779,101590.0,101580.0,0.1581278]
[1762659086890,0.00014779,101590.0,101580.0,0.1591278]
[1762659088895,0.00014779,101590.0,101580.0,0.5199278]
[1762659092504,0.00014779,101590.0,101580.0,0.1591278]
[1762659093799,0.00014779,101590.0,101580.0,0.3074278]
[1762659094609,0.09861589,101590.0,101580.0,0.3074278]
[1762659095499,0.00014779,101590.0,101580.0,0.3074278]
[1762659096407,0.09861589,101590.0,101580.0,0.3074278]
[1762659096607,0.00014779,101590.0,101580.0,0.3074278]
[1762659097110,0.09861589,101590.0,101580.0,0.3074278]
[1762659097703,0.00014779,101590.0,101580.0,0.93440204]
[1762659097911,0.54724104,101620.0,101610.0,0.1552087]
[1762659098111,0.57171185,101620.0,101610.0,0.1552087]
[1762659098311,0.51888779,101620.0,101610.0,0.1552087]
[1762659098502,0.57171185,101620.0,101610.0,0.1552087]
[1762659098904,0.38527081,101620.0,101610.0,0.1552087]
[1762659099207,0.38527081,101620.0,101610.0,0.1562087]
[1762659099208,0.39127081,101620.0,101610.0,0.1562087]
[1762659103098,0.03047081,101620.0,101610.0,0.1562087]
[1762659103609,0.03047081,101620.0,101610.0,0.28414051]
[1762659106220,0.006,101620.0,101610.0,0.1562087]
[1762659107114,0.48969978,101620.0,101610.0,0.1562087]
[1762659108405,0.5920482,101620.0,101610.0,0.25855712]
[1762659110220,0.56758742,101620.0,101610.0,0.25855712]
[1762659110519,0.465239,101620.0,101610.0,0.1562087]
[1762659110913,0.3638,101620.0,101610.0,0.1552087]
[1762659111219,0.3638,101620.0,101610.0,0.1562087]
[1762659111422,0.3608,101620.0,101610.0,0.1562087]
[1762659111720,0.3608,101620.0,101610.0,0.1572087]
[1762659112506,0.38526735,101620.0,101610.0,0.1572087]
[1762659113517,0.48370645,101620.0,101610.0,0.1572087]
[1762659115410,0.12290645,101620.0,101610.0,0.1572087]
[1762659115611,0.48370645,101620.0,101610.0,0.1572087]
[1762659115812,0.38526735,101620.0,101610.0,0.1572087]
[1762659116718,0.48370635,101620.0,101610.0,0.1572087]
[1762659117914,0.38526735,101620.0,101610.0,0.1572087]
[1762659118923,0.48370645,101620.0,101610.0,0.1572087]
[1762659119523,0.38526735,101620.0,101610.0,0.1572087]
[1762659120618,0.48370635,101620.0,101610.0,0.05876]
[1762659120819,0.61164138,101620.0,101610.0,0.01479]
[1762659121019,0.61164138,101620.0,101610.0,0.002]
[1762659121428,0.61164138,101620.0,101610.0,0.01545]
[1762659122422,0.61164138,101620.0,101610.0,0.1138987]
[1762659122725,0.61164138,101620.0,101610.0,0.1354687]
[1762659122935,0.61164138,101620.0,101610.0,0.1344687]
[1762659122936,0.61264138,101620.0,101610.0,0.1344687]
[1762659123522,0.61264138,101620.0,101610.0,0.1334687]
[1762659123724,0.61364138,101620.0,101610.0,0.1334687]
[1762659124224,0.61564138,101620.0,101610.0,0.1334687]
[1762659124427,0.61564138,101620.0,101610.0,0.01345]
[1762659125523,0.65081456,101620.0,101610.0,0.01345]
[1762659127123,0.0984488,101610.0,101600.0,0.15405939]
[1762659127320,0.61165118,101610.0,101600.0,0.05560779]
[1762659127519,0.61165118,101610.0,101600.0,0.03450779]
[1762659129028,0.61265118,101610.0,101600.0,0.03450779]
[1762659129228,0.61265118,101610.0,101600.0,0.13296619]
[1762659129430,0.61265118,101610.0,101600.0,0.03450779]
[1762659129628,0.61165118,101610.0,101600.0,0.03450779]
[1762659129828,0.61265118,101610.0,101600.0,0.03450779]
[1762659130130,0.61465118,101610.0,101600.0,0.03450779]
[1762659130526,0.61465118,101610.0,101600.0,0.01293779]
[1762659131630,0.61365118,101610.0,101600.0,0.01293779]
[1762659131929,0.61565118,101610.0,101600.0,0.01293779]
[1762659132327,0.69252245,101610.0,101600.0,0.03450779]
[1762659132631,0.69252245,101610.0,101600.0,0.13296619]
[1762659132831,0.69252245,101610.0,101600.0,0.03450779]
[1762659133835,0.69252245,101610.0,101600.0,0.00014779]
[1762659134028,0.72769563,101610.0,101600.0,0.00014779]
[1762659138641,0.72769563,101610.0,101600.0,0.01359779]
[1762659143141,0.72769563,101610.0,101600.0,0.05626779]
[1762659143142,0.5901193,101610.0,101600.0,0.05626779]
[1762659143651,0.38926735,101610.0,101600.0,0.25712944]
[1762659143942,0.1308705,101610.0,101600.0,0.25712944]
[1762659144130,0.1308705,101610.0,101600.0,0.35953259]
[1762659144131,0.004,101610.0,101600.0,0.35953259]
[1762659144637,0.004,101610.0,101600.0,0.25712944]
[1762659144836,0.004,101610.0,101600.0,0.35953259]
[1762659145037,0.3608,101620.0,101610.0,0.1545688]
[1762659145231,0.3608,101620.0,101610.0,0.25697195]
[1762659145436,0.46335094,101630.0,101620.0,0.1545591]
[1762659145641,0.48788643,101630.0,101620.0,0.25696225]
[1762659146246,0.38548328,101630.0,101620.0,0.25696225]
[1762659146939,0.38748328,101630.0,101620.0,0.25696225]
[1762659148035,0.38748328,101630.0,101620.0,0.3593654]
[1762659148243,0.38948328,101630.0,101620.0,0.25696225]
[1762659148838,0.48791268,101630.0,101620.0,0.25696225]
[1762659149144,0.38948328,101630.0,101620.0,0.25696225]
[1762659150643,0.38948328,101630.0,101620.0,0.3593654]
[1762659150841,0.36494779,101630.0,101620.0,0.3593654]
[1762659151439,0.00414779,101630.0,101620.0,0.7201654]
[1762659151645,0.00214779,101630.0,101620.0,0.7201654]
[1762659151845,0.00014779,101630.0,101620.0,0.9661654]
[1762659152044,0.00014779,101630.0,101620.0,0.7211654]
[1762659152244,0.00014779,101630.0,101620.0,0.9671654]
[1762659152652,0.00014779,101630.0,101620.0,0.7211654]
[1762659152852,0.00014779,101630.0,101620.0,0.9671654]
[1762659153149,0.00014779,101630.0,101620.0,0.7211654]
[1762659154442,6.55e-06,101630.0,101620.0,0.7211654]
[1762659156169,6.55e-06,101630.0,101620.0,1.2726054]
[1762659156365,6.55e-06,101630.0,101620.0,1.62100855]
[1762659157265,6.55e-06,101630.0,101620.0,1.37500855]
[1762659157467,6.55e-06,101630.0,101620.0,1.62100855]
[1762659157664,6.55e-06,101630.0,101620.0,1.37500855]
[1762659157865,6.55e-06,101630.0,101620.0,1.62100855]
[1762659158770,6.55e-06,101630.0,101620.0,1.37500855]
[1762659158958,6.55e-06,101630.0,101620.0,1.62100855]
[1762659159267,6.55e-06,101630.0,101620.0,1.37500855]
[1762659159467,6.55e-06,101630.0,101620.0,1.62100855]
[1762659160267,6.55e-06,101630.0,101620.0,1.37500855]
[1762659160467,6.55e-06,101630.0,101620.0,1.62100855]
[1762659161165,6.55e-06,101630.0,101620.0,1.37500855]
[1762659161368,6.55e-06,101630.0,101620.0,1.62100855]
[1762659161764,6.55e-06,101630.0,101620.0,1.37500855]
[1762659162065,6.55e-06,101630.0,101620.0,1.62100855]
[1762659162762,6.55e-06,101630.0,101620.0,1.26020855]
[1762659163070,6.55e-06,101630.0,101620.0,1.98180855]
[1762659163259,6.55e-06,101630.0,101620.0,1.99147735]
[1762659163965,6.55e-06,101630.0,101620.0,1.26987735]
[1762659164168,6.55e-06,101630.0,101620.0,1.74547735]
[1762659164468,6.55e-06,101630.0,101620.0,1.7865321]
[1762659164665,6.55e-06,101630.0,101620.0,1.9348321]
[1762659165065,6.55e-06,101630.0,101620.0,1.6888321]
[1762659165566,6.55e-06,101630.0,101620.0,1.9348321]
[1762659165765,6.55e-06,101630.0,101620.0,1.6888321]
[1762659165958,6.55e-06,101630.0,101620.0,1.9348321]
[1762659166159,6.55e-06,101630.0,101620.0,1.6888321]
[1762659166367,6.55e-06,101630.0,101620.0,1.9348321]
[1762659167164,6.55e-06,101630.0,101620.0,1.6888321]
[1762659167464,6.55e-06,101630.0,101620.0,1.9348321]
[1762659168270,6.55e-06,101630.0,101620.0,1.6888321]
[1762659168475,6.55e-06,101630.0,101620.0,1.9348321]
[1762659169063,6.55e-06,101630.0,101620.0,1.6888321]
[1762659169562,6.55e-06,101630.0,101620.0,1.9348321]
[1762659170573,6.55e-06,101630.0,101620.0,1.6888321]
[1762659170968,6.55e-06,101630.0,101620.0,1.9348321]
[1762659171471,6.55e-06,101630.0,101620.0,1.9251633]
[1762659172364,6.55e-06,101630.0,101620.0,1.9250433]
[1762659172564,6.55e-06,101630.0,101620.0,1.6790433]
[1762659172871,6.55e-06,101630.0,101620.0,1.9250033]
[1762659173071,6.55e-06,101630.0,101620.0,1.6790033]
[1762659173266,6.55e-06,101630.0,101620.0,1.9250033]
[1762659173467,0.4592109,101650.0,101640.0,0.1549197]
[1762659173670,0.48365379,101650.0,101640.0,0.2571839]
[1762659174567,0.48565379,101650.0,101640.0,0.2571839]
[1762659175078,0.38724289,101650.0,101640.0,0.2571839]
[1762659175678,0.48865299,101650.0,101640.0,0.2571839]
[1762659176369,0.3902656,101650.0,101640.0,0.2571839]
[1762659178579,0.0294656,101650.0,101640.0,0.2571839]
[1762659180876,0.4886757,101650.0,101640.0,0.2571839]
[1762659182978,0.4886757,101650.0,101640.0,0.1549197]
[1762659183280,0.62611308,101650.0,101640.0,0.03471]
[1762659183476,0.5909399,101650.0,101640.0,0.03471]
[1762659183680,0.62611308,101650.0,101640.0,0.05712]
[1762659184073,0.5909399,101650.0,101640.0,0.05712]
[1762659184274,0.62611308,101650.0,101640.0,0.05712]
[1762659185879,0.62611308,101650.0,101640.0,0.1555397]
[1762659186773,0.62611308,101650.0,101640.0,0.05712]
[1762659186975,0.62611308,101650.0,101640.0,0.1555398]
[1762659187674,0.5909399,101650.0,101640.0,0.1555398]
[1762659187886,0.5909399,101650.0,101640.0,0.05712]
[1762659188396,0.5909399,101650.0,101640.0,0.01307]
[1762659188586,0.5909399,101650.0,101640.0,0.05867]
[1762659189184,0.5909399,101650.0,101640.0,0.1570897]
[1762659191077,0.5909399,101650.0,101640.0,0.05867]
[1762659191478,0.5909399,101650.0,101640.0,0.03626]
[1762659191674,0.5909399,101650.0,101640.0,0.01307]
[1762659191984,0.5909399,101650.0,101640.0,0.03626]
[1762659192183,0.5909399,101650.0,101640.0,0.05867]
[1762659193685,0.62311308,101650.0,101640.0,0.05867]
[1762659193876,0.0984198,101640.0,101630.0,0.05881779]
[1762659194075,0.5859496,101640.0,101630.0,0.05881779]
[1762659194275,0.6882138,101640.0,101630.0,0.01321779]
[1762659194582,0.62112278,101640.0,101630.0,0.01321779]
[1762659194778,0.42043878,101640.0,101630.0,0.15724719]
[1762659194976,0.3852656,101640.0,101630.0,0.15724719]
[1762659195171,0.5859495,101640.0,101630.0,0.05881779]
[1762659195980,0.5859495,101640.0,101630.0,0.05981779]
[1762659197387,0.4836853,101640.0,101630.0,0.05981779]
[1762659197681,0.5859495,101640.0,101630.0,0.05981779]
[1762659199185,0.5859495,101640.0,101630.0,0.15824719]
[1762659199890,0.58575939,101640.0,101630.0,0.15824719]
[1762659200775,0.58575939,101640.0,101630.0,0.03740779]
[1762659200976,0.68802359,101640.0,101630.0,0.00114779]
[1762659201193,0.72319677,101640.0,101630.0,0.00114779]
[1762659201394,0.0984391,101620.0,101610.0,0.56473]
[1762659201685,0.94657879,101620.0,101610.0,0.56473]
[1762659202890,0.94657879,101620.0,101610.0,0.56573]
[1762659204189,0.94657879,101620.0,101610.0,0.7097788]
[1762659204397,0.84431459,101620.0,101610.0,0.7097788]
[1762659205988,0.84431459,101620.0,101610.0,0.61133]
[1762659206188,0.84431459,101620.0,101610.0,0.7097788]
[1762659207395,0.94657879,101620.0,101610.0,0.7097788]
[1762659208700,0.84431459,101620.0,101610.0,0.7097788]
[1762659210202,0.8200391,101620.0,101610.0,0.7097788]
[1762659211092,0.94650311,101620.0,101610.0,0.61133]
[1762659213098,0.84423891,101620.0,101610.0,0.61133]
[1762659213298,0.94650311,101620.0,101610.0,0.61133]
[1762659214392,0.94650311,101620.0,101610.0,0.58892]
[1762659215199,0.94650311,101620.0,101610.0,0.61005]
[1762659217000,0.94650311,101620.0,101610.0,0.56573]
[1762659217508,0.94650311,101620.0,101610.0,0.05844]
[1762659222209,0.94650311,101620.0,101610.0,0.1568888]
[1762659222609,0.94650311,101620.0,101610.0,0.05844]
[1762659223805,0.94650311,101620.0,101610.0,0.01445]
[1762659224314,1.04900427,101620.0,101610.0,0.01445]
[1762659225509,1.04900427,101620.0,101610.0,0.03731]
[1762659226008,1.04900427,101620.0,101610.0,0.01445]
[1762659226213,1.08417745,101620.0,101610.0,0.01445]
[1762659226907,1.08417745,101620.0,101610.0,0.03757]
[1762659227109,1.08417745,101620.0,101610.0,0.01445]
[1762659227508,1.38659489,101620.0,101610.0,0.001]
[1762659227812,1.28421221,101620.0,101610.0,0.001]
[1762659228505,1.23138815,101620.0,101610.0,0.001]
[1762659228811,1.24903903,101620.0,101610.0,0.001]
[1762659235417,1.24903903,101620.0,101610.0,0.03756]
[1762659235718,1.24903903,101620.0,101610.0,0.05867]
[1762659238516,1.04427367,101620.0,101610.0,0.05867]
[1762659238818,1.24903903,101620.0,101610.0,0.05867]
[1762659239117,1.28418683,101620.0,101610.0,0.05867]
[1762659239616,1.23136277,101620.0,101610.0,0.05867]
[1762659239816,1.28418683,101620.0,101610.0,0.05867]
[1762659240116,1.18180678,101620.0,101610.0,0.05867]
[1762659240711,1.28418946,101620.0,101610.0,0.05867]
[1762659242313,1.03459608,101620.0,101610.0,0.05867]
[1762659242713,1.13697876,101620.0,101610.0,0.05867]
[1762659244617,1.13701583,101620.0,101610.0,0.05867]
[1762659246818,1.13701583,101620.0,101610.0,0.01444]
[1762659247621,1.10182833,101620.0,101610.0,0.01444]
[1762659247824,1.20421101,101620.0,101610.0,0.001]